fUSD/lending_fUSD_20240109
["ID","MTS","AMOUNT","RATE_DAILY","PERIOD"]
[310982037,1704839446864,-500.0,0.00041095,30]
[310982038,1704839446874,-690.72,0.00041095,30]
[310982039,1704839446884,-500.0,0.00041095,30]
[310982040,1704839446894,-743.86,0.00041095,30]
[310982041,1704839446903,-198.7935721,0.00041095,30]
[310982042,1704839446914,-668.12,0.00041095,30]
[310982043,1704839446924,-500.0,0.00041095,30]
[310982044,1704839446935,-500.0,0.00041095,30]
[310982045,1704839446946,-500.0,0.00041095,30]
[310982046,1704839446955,-500.0,0.00041095,30]
[310982047,1704839446969,-576.64,0.00041095,30]
[310982048,1704839446979,-500.0,0.00041095,30]
[310982049,1704839446990,-846.81,0.00041095,6]
[310982050,1704839447000,-500.0,0.00041095,30]
[310982051,1704839447010,-500.0,0.00041095,30]
[310982052,1704839447020,-500.0,0.00041095,30]
[310982053,1704839447030,-20.37048559,0.00041095,30]
[310982054,1704839447055,-564.44294593,0.00041095,30]
[310982055,1704839447065,-500.0,0.00041095,30]
[310982056,1704839447075,-500.0,0.00041095,30]
[310982057,1704839447085,-500.0,0.00041095,30]
[310982058,1704839447094,-519.36743,0.00041095,30]
[310982059,1704839447104,-500.0,0.00041095,30]
[310982060,1704839447113,-500.0,0.00041095,30]
[310982061,1704839447123,-1202.14,0.00041095,30]
[310982062,1704839447132,-500.0,0.00041095,30]
[310982063,1704839447142,-904.83,0.00041095,30]
[310982064,1704839447152,-500.0,0.00041095,30]
[310982065,1704839447161,-500.0,0.00041095,30]
[310982066,1704839447171,-500.0,0.00041095,30]
[310982067,1704839447180,-500.0,0.00041095,30]
[310982068,1704839447189,-672.63,0.00041095,30]
[310982069,1704839447199,-1746.25,0.00041095,30]
[310982070,1704839447209,-513.01,0.00041095,30]
[310982071,1704839447219,-500.0,0.00041095,30]
[310982072,1704839447229,-500.0,0.00041095,30]
[310982073,1704839447239,-755.93,0.00041095,30]
[310982074,1704839447248,-450.54747372,0.00041095,30]
[310982075,1704839447258,-500.0,0.00041095,30]
[310982076,1704839447267,-834.48935547,0.00041095,30]
[310982077,1704839447312,-123.00064453,0.00041095,30]
[310982078,1704839447321,-500.0,0.00041095,30]
[310982079,1704839447330,-195.30398636,0.00041095,30]
[310982080,1704839447339,-500.0,0.00041095,30]
[310982081,1704839447349,-500.0,0.00041095,30]
[310982082,1704839447358,-500.0,0.00041095,30]
[310982083,1704839447367,-500.0,0.00041095,30]
[310982084,1704839447376,-500.0,0.00041095,30]
[310982085,1704839447387,-503.57,0.00041095,30]
[310982086,1704839447396,-500.0,0.00041095,30]
[310982087,1704839447406,-500.0,0.00041095,30]
[310982088,1704839447416,-500.0,0.00041095,7]
[310982089,1704839447427,-500.0,0.00041095,30]
[310982090,1704839447437,-500.0,0.00041095,30]
[310982091,1704839447448,-500.0,0.00041095,30]
[310982092,1704839447458,-500.0,0.00041095,30]
[310982093,1704839447474,-694.02,0.00041095,30]
[310982094,1704839447487,-917.57,0.00041095,30]
[310982095,1704839447499,-500.0,0.00041095,30]
[310982096,1704839447510,-500.0,0.00041095,30]
[310982097,1704839447522,-720.93,0.00041095,30]
[310982098,1704839447538,-500.0,0.00041095,30]
[310982099,1704839447550,-661.99,0.00041095,30]
[310982100,1704839447561,-500.0,0.00041095,30]
[310982101,1704839447573,-522.6,0.00041095,30]
[310982102,1704839447583,-500.0,0.00041095,30]
[310982103,1704839447597,-500.0,0.00041095,30]
[310982104,1704839447607,-500.0,0.00041095,30]
[310982105,1704839447618,-688.12,0.00041095,30]
[310982106,1704839447631,-500.0,0.00041095,30]
[310982107,1704839447641,-721.08,0.00041095,30]
[310982108,1704839447651,-500.0,0.00041095,30]
[310982109,1704839447662,-895.68,0.00041095,30]
[310982110,1704839447676,-500.0,0.00041095,30]
[310982111,1704839447693,-500.0,0.00041095,30]
[310982112,1704839447704,-898.96,0.00041095,30]
[310982113,1704839447715,-500.0,0.00041095,30]
[310982114,1704839447726,-500.0,0.00041095,30]
[310982115,1704839447736,-500.0,0.00041095,30]
[310982116,1704839447746,-1004.99,0.00041095,30]
[310982118,1704839447756,-500.0,0.00041095,30]
[310982120,1704839447766,-500.0,0.00041095,30]
[310982121,1704839447776,-500.0,0.00041095,30]
[310982122,1704839447786,-500.0,0.00041095,30]
[310982123,1704839447796,-500.0,0.00041095,30]
[310982124,1704839447806,-256.14865182,0.00041095,30]
[310982125,1704839447827,-243.85134818,0.00041095,30]
[310982126,1704839447838,-496.76734512,0.00041095,30]
[310982127,1704839447851,-48.42265488,0.00041095,30]
[310982128,1704839447861,-705.16,0.00041095,30]
[310982129,1704839447871,-633.9719927,0.00041095,30]
[310982130,1704839447884,-224.6680073,0.00041095,30]
[310982131,1704839447895,-726.48,0.00041095,30]
[310982132,1704839447906,-500.0,0.00041095,30]
[310982133,1704839447916,-500.0,0.00041095,30]
[310982134,1704839447926,-500.0,0.00041095,30]
[310982135,1704839447936,-500.0,0.00041095,30]
[310982136,1704839447947,-500.0,0.00041095,30]
[310982137,1704839447957,-74.35527315,0.00041095,30]
[310982138,1704839447972,-425.64472685,0.00041095,30]
[310982139,1704839447982,-974.47,0.00041095,30]
[310982140,1704839447992,-500.0,0.00041095,30]
[310982141,1704839448002,-500.0,0.00041095,30]
[310982142,1704839448013,-500.0,0.00041095,30]
[310982143,1704839448023,-603.41,0.00041095,30]
[310982144,1704839448033,-500.0,0.00041095,30]
[310982145,1704839448044,-183.16001376,0.00041095,30]
[310982146,1704839448057,-316.83998624,0.00041095,30]
[310982147,1704839448067,-667.53,0.00041095,30]
[310982148,1704839448077,-500.0,0.00041095,30]
[310982149,1704839448091,-500.0,0.00041095,30]
[310982150,1704839448101,-500.0,0.00041095,30]
[310982151,1704839448111,-500.0,0.00041095,30]
[310982152,1704839448122,-500.0,0.00041095,30]
[310982153,1704839448132,-500.0,0.00041095,30]
[310982154,1704839448142,-500.0,0.00041095,30]
[310982155,1704839448153,-1000.0,0.00041095,30]
[310982156,1704839448163,-442.25704788,0.00041095,30]
[310982157,1704839448173,-500.0,0.00041095,30]
[310982158,1704839448184,-500.0,0.00041095,30]
[310982159,1704839448194,-500.0,0.00041095,30]
[310982160,1704839448204,-500.0,0.00041095,30]
[310982161,1704839448214,-500.0,0.00041095,30]
[310982162,1704839448225,-500.0,0.00041095,30]
[310982163,1704839448235,-500.0,0.00041095,30]
[310982164,1704839448245,-500.0,0.00041095,30]
[310982165,1704839448255,-1112.82,0.00041095,30]
[310982166,1704839448265,-500.0,0.00041095,30]
[310982167,1704839448275,-937.45,0.00041095,30]
[310982168,1704839448286,-188.86029694,0.00041095,30]
[310982169,1704839448295,-500.0,0.00041095,7]
[310982170,1704839448305,-534.1,0.00041095,30]
[310982171,1704839448315,-500.0,0.00041095,30]
[310982172,1704839448325,-556.86,0.00041095,30]
[310982173,1704839448335,-500.0,0.00041095,30]
[310982174,1704839448344,-500.0,0.00041095,30]
[310982175,1704839448354,-500.0,0.00041095,30]
[310982176,1704839448364,-500.0,0.00041095,30]
[310982177,1704839448374,-783.64,0.00041095,30]
[310982178,1704839448383,-600.41,0.00041095,30]
[310982179,1704839448393,-677.96,0.00041095,30]
[310982180,1704839448403,-594.77863299,0.00041095,30]
[310982181,1704839448413,-608.79,0.00041095,30]
[310982182,1704839448422,-500.0,0.00041095,2]
[310982183,1704839448432,-694.95,0.00041095,30]
[310982184,1704839448441,-500.0,0.00041095,30]
[310982185,1704839448451,-500.0,0.00041095,30]
[310982186,1704839448460,-500.0,0.00041095,30]
[310982187,1704839448470,-500.0,0.00041095,30]
[310982188,1704839448479,-599.49,0.00041095,30]
[310982189,1704839448488,-500.0,0.00041095,30]
[310982190,1704839448498,-520.17,0.00041095,30]
[310982191,1704839448508,-484.82579893,0.00041095,30]
[310982192,1704839448518,-500.0,0.00041095,30]
[310982193,1704839448527,-602.71,0.00041095,30]
[310982194,1704839448537,-500.0,0.00041095,30]
[310982195,1704839448546,-500.0,0.00041095,30]
[310982196,1704839448556,-500.0,0.00041095,30]
[310982197,1704839448565,-538.34965173,0.00041095,30]
[310982198,1704839448575,-500.0,0.00041095,30]
[310982199,1704839448585,-500.0,0.00041095,30]
[310982200,1704839448594,-887.49,0.00041095,30]
[310982201,1704839448604,-500.0,0.00041095,30]
[310982202,1704839448626,-410.98913968,0.00041095,30]
[310982203,1704839448636,-554.71228746,0.00041095,30]
[310982204,1704839448646,-166.20814101,0.00041095,30]
[310982205,1704839448656,-598.03443038,0.00041095,30]
[310982206,1704839448666,-635.42415158,0.00041095,30]
[310982207,1704839448677,-500.0,0.00041095,30]
[310982208,1704839448686,-500.0,0.00041095,30]
[310982209,1704839448698,-505.38,0.00041095,30]
[310982210,1704839448708,-644.9,0.00041095,30]
[310982211,1704839448719,-655.5,0.00041095,30]
[310982212,1704839448729,-500.0,0.00041095,30]
[310982213,1704839448738,-500.0,0.00041095,30]
[310982214,1704839448748,-500.0,0.00041095,30]
[310982215,1704839448758,-500.0,0.00041095,30]
[310982216,1704839448767,-500.0,0.00041095,30]
[310982217,1704839448777,-500.0,0.00041095,30]
[310982218,1704839448787,-500.0,0.00041095,30]
[310982219,1704839448796,-689.69,0.00041095,30]
[310982220,1704839448806,-975.86,0.00041095,30]
[310982221,1704839448816,-500.0,0.00041095,30]
[310982222,1704839448825,-500.0,0.00041095,30]
[310982223,1704839448835,-679.91,0.00041095,30]
[310982224,1704839448845,-1299.59,0.00041095,30]
[310982225,1704839448855,-1036.8,0.00041095,30]
[310982226,1704839448864,-500.0,0.00041095,30]
[310982227,1704839448874,-500.0,0.00041095,30]
[310982228,1704839449407,-245.85168097,0.00041095,30]
[310982229,1704839449433,-500.0,0.00041095,30]
[310982230,1704839449443,-500.0,0.00041095,30]
[310982231,1704839449452,-939.05,0.00041095,30]
[310982232,1704839449461,-500.0,0.00041095,30]
[310982233,1704839449472,-500.0,0.00041095,30]
[310982234,1704839449481,-500.0,0.00041095,30]
[310982235,1704839449491,-869.74,0.00041095,30]
[310982236,1704839449500,-500.0,0.00041095,30]
[310982237,1704839449509,-1098.99,0.00041095,30]
[310982238,1704839449521,-500.0,0.00041095,30]
[310982239,1704839449531,-664.88,0.00041095,30]
[310982240,1704839449540,-1302.62,0.00041095,30]
[310982241,1704839449550,-500.0,0.00041095,30]
[310982242,1704839449559,-500.0,0.00041095,30]
[310982243,1704839449568,-500.0,0.00041095,30]
[310982244,1704839449577,-500.0,0.00041095,30]
[310982245,1704839449587,-500.0,0.00041095,30]
[310982246,1704839449598,-500.0,0.00041095,30]
[310982247,1704839449608,-632.04,0.00041095,30]
[310982248,1704839449618,-1249.84,0.00041095,30]
[310982249,1704839449627,-509.17,0.00041095,30]
[310982250,1704839449637,-592.25,0.00041095,30]
[310982251,1704839449646,-1700.86,0.00041095,30]
[310982252,1704839449655,-630.39,0.00041095,30]
[310982253,1704839449664,-606.18,0.00041095,30]
[310982254,1704839449675,-500.0,0.00041095,30]
[310982255,1704839449684,-1064.24,0.00041095,30]
[310982256,1704839449701,-500.0,0.00041095,30]
[310982257,1704839449711,-771.22,0.00041095,30]
[310982258,1704839449722,-512.28,0.00041095,30]
[310982259,1704839449732,-500.0,0.00041095,30]
[310982260,1704839449742,-500.0,0.00041095,30]
[310982261,1704839449751,-500.0,0.00041095,30]
[310982262,1704839449761,-500.0,0.00041095,30]
[310982263,1704839449771,-500.0,0.00041095,30]
[310982264,1704839449780,-500.0,0.00041095,30]
[310982265,1704839449789,-534.4,0.00041095,30]
[310982266,1704839449799,-840.29,0.00041095,30]
[310982267,1704839449809,-930.9,0.00041095,30]
[310982268,1704839449819,-500.0,0.00041095,30]
[310982269,1704839449828,-500.0,0.00041095,30]
[310982270,1704839449838,-1000.0,0.00041095,30]
[310982271,1704839449848,-500.0,0.00041095,30]
[310982272,1704839449857,-500.0,0.00041095,30]
[310982273,1704839449866,-1024.62,0.00041095,30]
[310982274,1704839449875,-1399.48,0.00041095,30]
[310982275,1704839449885,-500.0,0.00041095,30]
[310982276,1704839449894,-732.82,0.00041095,30]
[310982277,1704839449904,-542.01,0.00041095,30]
[310982278,1704839449914,-591.58,0.00041095,30]
[310982279,1704839449924,-1041.14,0.00041095,30]
[310982280,1704839449934,-500.0,0.00041095,30]
[310982281,1704839449944,-530.15,0.00041095,30]
[310982282,1704839449953,-500.0,0.00041095,30]
[310982283,1704839449963,-571.87,0.00041095,30]
[310982284,1704839449975,-500.0,0.00041095,30]
[310982285,1704839449985,-500.0,0.00041095,30]
[310982286,1704839449994,-690.45,0.00041095,30]
[310982287,1704839450005,-500.0,0.00041095,15]
[310982288,1704839450015,-1489.08,0.00041095,30]
[310982289,1704839450025,-500.0,0.00041095,30]
[310982290,1704839450034,-500.0,0.00041095,30]
[310982291,1704839450044,-1920.11,0.00041095,30]
[310982292,1704839450054,-640.95,0.00041095,30]
[310982293,1704839450064,-686.49,0.00041095,30]
[310982294,1704839450074,-578.38,0.00041095,30]
[310982295,1704839450085,-500.0,0.00041095,30]
[310982296,1704839450095,-500.0,0.00041095,30]
[310982297,1704839450106,-500.0,0.00041095,30]
[310982298,1704839450116,-500.0,0.00041095,30]
[310982299,1704839450125,-868.06,0.00041095,30]
[310982300,1704839450135,-919.32,0.00041095,30]
[310982301,1704839450145,-711.2,0.00041095,30]
[310982302,1704839450155,-500.0,0.00041095,30]
[310982303,1704839450165,-452.89292295,0.00041095,30]
[310982304,1704839450195,-47.10707705,0.00041095,30]
[310982305,1704839450205,-500.0,0.00041095,30]
[310982306,1704839450218,-571.65,0.00041095,30]
[310982307,1704839450229,-500.0,0.00041095,10]
[310982308,1704839450239,-500.0,0.00041095,30]
[310982309,1704839450249,-1533.48,0.00041095,30]
[310982310,1704839450258,-500.0,0.00041095,30]
[310982311,1704839450268,-541.03,0.00041095,30]
[310982312,1704839450278,-500.0,0.00041095,30]
[310982313,1704839450287,-596.580001,0.00041095,30]
[310982314,1704839450297,-500.0,0.00041095,30]
[310982315,1704839450307,-500.0,0.00041095,30]
[310982316,1704839450317,-500.0,0.00041095,30]
[310982317,1704839450326,-500.0,0.00041095,30]
[310982318,1704839450336,-500.0,0.00041095,30]
[310982319,1704839450346,-2000.0,0.00041095,30]
[310982320,1704839450356,-1216.17279891,0.00041095,30]
[310982321,1704839450370,-102.91720109,0.00041095,30]
[310982322,1704839450379,-500.0,0.00041095,30]
[310982323,1704839450389,-500.0,0.00041095,30]
[310982324,1704839450399,-500.0,0.00041095,30]
[310982325,1704839450409,-837.15,0.00041095,30]
[310982326,1704839450420,-675.36,0.00041095,10]
[310982327,1704839450430,-500.0,0.00041095,30]
[310982328,1704839450440,-500.0,0.00041095,30]
[310982329,1704839450450,-284.57279892,0.00041095,30]
[310982330,1704839451001,-500.0,0.000351,2]
[310982331,1704839451011,-498.13995167,0.00038131,10]
[310982332,1704839451024,-4621.58004833,0.00038131,10]
[310982333,1704839451034,-683.74409656,0.00039553,2]
[310982334,1704839451044,-800.27,0.00041095,30]
[310982335,1704839451054,-500.0,0.00041095,30]
[310982336,1704839451064,-500.0,0.00041095,30]
[310982337,1704839451073,-748.51,0.00041095,30]
[310982338,1704839451083,-1017.04,0.00041095,30]
[310982339,1704839451093,-1161.12,0.00041095,30]
[310982340,1704839451103,-500.0,0.00041095,30]
[310982341,1704839451112,-500.0,0.00041095,30]
[310982342,1704839451122,-500.0,0.00041095,30]
[310982343,1704839451132,-500.0,0.00041095,30]
[310982344,1704839451142,-715.5,0.00041095,30]
[310982345,1704839451151,-500.0,0.00041095,30]
[310982346,1704839451161,-500.0,0.00041095,30]
[310982347,1704839451171,-500.0,0.00041095,30]
[310982348,1704839451181,-659.03,0.00041095,30]
[310982349,1704839451191,-500.0,0.00041095,30]
[310982350,1704839451201,-1188.52,0.00041095,30]
[310982351,1704839451211,-500.0,0.00041095,30]
[310982352,1704839451221,-600.69637959,0.00041095,30]
[310982353,1704839451231,-500.0,0.00041095,30]
[310982354,1704839451240,-1202.84,0.00041095,30]
[310982355,1704839451250,-500.0,0.00041095,30]
[310982356,1704839451260,-500.0,0.00041095,30]
[310982357,1704839451270,-903.57,0.00041095,30]
[310982358,1704839451280,-500.0,0.00041095,30]
[310982359,1704839451289,-500.0,0.00041095,30]
[310982360,1704839451299,-500.0,0.00041095,30]
[310982361,1704839451308,-334.06134281,0.00041095,30]
[310982362,1704839451322,-165.93865719,0.00041095,30]
[310982363,1704839451332,-563.90581827,0.00041095,30]
[310982364,1704839451344,-494.77115228,0.00041095,30]
[310982365,1704839451370,-3.00302945,0.00041095,30]
[310982366,1704839451380,-992.37,0.00041095,30]
[310982367,1704839451391,-500.0,0.00041095,30]
[310982368,1704839451401,-500.0,0.00041095,30]
[310982369,1704839451412,-500.0,0.00041095,30]
[310982370,1704839451423,-500.0,0.00041095,30]
[310982371,1704839451434,-500.0,0.00041095,30]
[310982372,1704839451445,-500.0,0.00041095,30]
[310982373,1704839451455,-500.0,0.00041095,30]
[310982374,1704839451466,-861.95,0.00041095,30]
[310982375,1704839451478,-972.05,0.00041095,30]
[310982376,1704839451489,-500.0,0.00041095,30]
[310982377,1704839451499,-500.0,0.00041095,30]
[310982378,1704839451509,-1017.6,0.00041095,30]
[310982379,1704839451519,-606.31,0.00041095,30]
[310982380,1704839451529,-787.02,0.00041095,30]
[310982381,1704839451540,-903.8,0.00041095,30]
[310982382,1704839451550,-500.0,0.00041095,30]
[310982383,1704839451560,-382.08904317,0.00041095,30]
[310982384,1704839451571,-500.0,0.00041095,30]
[310982385,1704839451582,-2084.3,0.00041095,30]
[310982386,1704839451592,-500.0,0.00041095,30]
[310982387,1704839451603,-675.18,0.00041095,30]
[310982388,1704839451613,-500.0,0.00041095,30]
[310982389,1704839451623,-1244.5,0.00041095,30]
[310982390,1704839451634,-943.26,0.00041095,30]
[310982391,1704839451644,-585.27865798,0.00041095,30]
[310982392,1704839451654,-752.97,0.00041095,30]
[310982393,1704839451664,-500.0,0.00041095,30]
[310982394,1704839451678,-942.84,0.00041095,30]
[310982395,1704839451688,-500.0,0.00041095,30]
[310982396,1704839451698,-516.40399521,0.00041095,30]
[310982397,1704839451709,-1830.96307877,0.00041095,30]
[310982398,1704839451720,-500.0,0.00041095,30]
[310982399,1704839451730,-608.39813809,0.00041095,30]
[310982400,1704839451740,-500.0,0.00041095,30]
[310982401,1704839451750,-752.43,0.00041095,30]
[310982402,1704839451761,-500.0,0.00041095,30]
[310982403,1704839451771,-694.9,0.00041095,30]
[310982404,1704839451781,-500.0,0.00041095,30]
[310982405,1704839451791,-537.15,0.00041095,30]
[310982406,1704839451801,-500.0,0.00041095,30]
[310982407,1704839451811,-1401.45,0.00041095,30]
[310982408,1704839451821,-500.0,0.00041095,30]
[310982409,1704839451831,-1368.37,0.00041095,30]
[310982410,1704839451841,-488.54136367,0.00041095,30]
[310982411,1704839451851,-824.66,0.00041095,30]
[310982412,1704839451860,-811.41,0.00041095,30]
[310982413,1704839451870,-829.33,0.00041095,30]
[310982414,1704839451880,-500.0,0.00041095,30]
[310982415,1704839451890,-835.72,0.00041095,30]
[310982416,1704839451900,-500.0,0.00041095,30]
[310982417,1704839451910,-500.0,0.00041095,30]
[310982418,1704839452086,-500.0,0.00041095,30]
[310982419,1704839452096,-500.0,0.00041095,30]
[310982420,1704839452106,-500.0,0.00041095,30]
[310982421,1704839452116,-1015.3,0.00041095,30]
[310982422,1704839452125,-500.0,0.00041095,30]
[310982423,1704839452135,-496.05279468,0.00041095,30]
[310982424,1704839452144,-500.0,0.00041095,30]
[310982425,1704839452153,-830.53,0.00041095,30]
[310982426,1704839452162,-1000.0,0.00041095,7]
[310982427,1704839452171,-500.0,0.00041095,30]
[310982428,1704839452181,-500.0,0.00041095,30]
[310982429,1704839452190,-1210.17,0.00041095,30]
[310982430,1704839452199,-500.0,0.00041095,30]
[310982431,1704839452209,-500.0,0.00041095,30]
[310982432,1704839452220,-885.04,0.00041095,30]
[310982433,1704839452230,-500.0,0.00041095,30]
[310982434,1704839452240,-531.08,0.00041095,30]
[310982435,1704839452250,-1357.29,0.00041095,30]
[310982436,1704839452259,-1118.04,0.00041095,30]
[310982437,1704839452268,-500.0,0.00041095,30]
[310982438,1704839452278,-500.0,0.00041095,30]
[310982439,1704839452288,-500.0,0.00041095,30]
[310982440,1704839452298,-500.0,0.00041095,30]
[310982441,1704839452307,-1622.37,0.00041095,30]
[310982442,1704839452316,-549.99,0.00041095,30]
[310982443,1704839452326,-500.0,0.00041095,30]
[310982444,1704839452335,-1355.33,0.00041095,30]
[310982445,1704839452344,-500.0,0.00041095,30]
[310982446,1704839452353,-300.0,0.00041095,30]
[310982447,1704839452362,-500.0,0.00041095,30]
[310982448,1704839452372,-500.0,0.00041095,30]
[310982449,1704839452381,-500.0,0.00041095,30]
[310982450,1704839452390,-500.0,0.00041095,30]
[310982451,1704839452399,-290.70230468,0.00041095,30]
[310982452,1704839452408,-500.0,0.00041095,30]
[310982453,1704839452417,-1000.0,0.00041095,7]
[310982454,1704839452426,-500.0,0.00041095,30]
[310982455,1704839452436,-500.0,0.00041095,30]
[310982456,1704839452445,-3000.0,0.00041095,120]
[310982457,1704839452454,-500.0,0.00041095,30]
[310982458,1704839452463,-735.65,0.00041095,30]
[310982459,1704839452474,-500.0,0.00041095,30]
[310982460,1704839452483,-500.0,0.00041095,30]
[310982461,1704839452492,-500.0,0.00041095,30]
[310982462,1704839452500,-500.0,0.00041095,30]
[310982463,1704839452509,-500.0,0.00041095,30]
[310982464,1704839452523,-523.43,0.00041095,30]
[310982465,1704839452533,-500.0,0.00041095,30]
[310982466,1704839452543,-750.23,0.00041095,30]
[310982467,1704839452553,-500.0,0.00041095,30]
[310982468,1704839452562,-500.0,0.00041095,30]
[310982469,1704839452572,-500.0,0.00041095,30]
[310982470,1704839452581,-500.0,0.00041095,30]
[310982471,1704839452590,-745.92,0.00041095,30]
[310982472,1704839452599,-500.0,0.00041095,30]
[310982473,1704839452610,-500.0,0.00041095,30]
[310982474,1704839452619,-971.41,0.00041095,30]
[310982475,1704839452629,-500.0,0.00041095,30]
[310982476,1704839452639,-1116.66,0.00041095,30]
[310982477,1704839452649,-500.0,0.00041095,30]
[310982478,1704839452659,-500.0,0.00041095,30]
[310982479,1704839452668,-260.56749303,0.00041095,30]
[310982480,1704839452683,-990.06,0.00041095,4]
[310982481,1704839452693,-500.0,0.00041095,30]
[310982482,1704839452702,-613.72,0.00041095,30]
[310982483,1704839452711,-640.78,0.00041095,30]
[310982484,1704839452720,-500.0,0.00041095,30]
[310982485,1704839452730,-536.99,0.00041095,30]
[310982486,1704839452739,-514.97,0.00041095,30]
[310982487,1704839452748,-500.0,0.00041095,30]
[310982488,1704839452758,-764.71,0.00041095,30]
[310982489,1704839452767,-1192.63,0.00041095,30]
[310982490,1704839452777,-1138.49,0.00041095,30]
[310982491,1704839452786,-500.0,0.00041095,30]
[310982492,1704839452796,-500.0,0.00041095,30]
[310982493,1704839452805,-500.0,0.00041095,30]
[310982494,1704839452814,-500.0,0.00041095,30]
[310982495,1704839452824,-865.92,0.00041095,30]
[310982496,1704839452834,-500.0,0.00041095,30]
[310982497,1704839452844,-500.0,0.00041095,30]
[310982498,1704839452853,-500.0,0.00041095,30]
[310982499,1704839452863,-487.51670054,0.00041095,30]
[310982500,1704839452873,-1276.87,0.00041095,30]
[310982501,1704839452883,-1151.37,0.00041095,30]
[310982502,1704839452892,-533.38,0.00041095,30]
[310982503,1704839452901,-500.0,0.00041095,2]
[310982504,1704839452910,-500.0,0.00041095,30]
[310982505,1704839452920,-1039.42129113,0.00041095,2]
[310982506,1704839452930,-500.0,0.00041095,30]
[310982507,1704839452939,-484.09444269,0.00041095,30]
[310982508,1704839452949,-500.0,0.00041095,30]
[310982509,1704839452959,-500.0,0.00041095,30]
[310982510,1704839452968,-500.0,0.00041095,30]
[310982511,1704839452979,-992.76,0.00041095,30]
[310982512,1704839452988,-500.0,0.00041095,30]
[310982513,1704839452998,-500.0,0.00041095,30]
[310982514,1704839453007,-500.0,0.00041095,30]
[310982515,1704839453017,-500.0,0.00041095,30]
[310982516,1704839453026,-500.0,0.00041095,30]
[310982517,1704839453036,-500.0,0.00041095,30]
[310982518,1704839453045,-500.0,0.00041095,30]
[310982519,1704839453057,-500.0,0.00041095,30]
[310982520,1704839453067,-510.19,0.00041095,30]
[310982521,1704839453076,-500.0,0.00041095,30]
[310982522,1704839453086,-500.0,0.00041095,30]
[310982523,1704839453095,-516.47020391,0.00041095,30]
[310982524,1704839453105,-500.0,0.00041095,30]
[310982525,1704839453115,-500.0,0.00041095,30]
[310982526,1704839453124,-1182.75,0.00041095,30]
[310982527,1704839453134,-500.0,0.00041095,30]
[310982528,1704839453145,-500.0,0.00041095,30]
[310982529,1704839453156,-500.0,0.00041095,30]
[310982530,1704839453165,-1063.23,0.00041095,30]
[310982531,1704839453176,-500.0,0.00041095,30]
[310982532,1704839453186,-500.0,0.00041095,30]
[310982533,1704839453196,-500.0,0.00041095,30]
[310982534,1704839453205,-500.0,0.00041095,30]
[310982535,1704839453215,-500.0,0.00041095,30]
[310982536,1704839453226,-500.0,0.00041095,30]
[310982537,1704839453236,-510.84164958,0.00041095,30]
[310982538,1704839453245,-551.08,0.00041095,30]